bitfinex/quotes_SOLUSD_20220212
["timestamp","ask_amount","ask_price","bid_price","bid_amount"]
[1644631121838,233.8,97.92,97.88,15.3281]
[1644631122037,5.107,97.919,97.88,15.3281]
[1644631122236,238.907,97.919,97.88,15.3281]
[1644631122436,233.8,97.919,97.88,15.3281]
[1644631122643,5.107,97.918,97.88,15.3281]
[1644631122837,238.907,97.918,97.88,15.3281]
[1644631123038,233.8,97.918,97.871,24.5557]
[1644631123340,5.107,97.917,97.871,24.5557]
[1644631123538,23.6808,97.937,97.871,24.5557]
[1644631123738,28.7878,97.937,97.871,24.5557]
[1644631124137,39.71980316,97.936,97.871,24.5557]
[1644631124344,5.107,97.935,97.871,24.5557]
[1644631124539,238.907,97.935,97.871,24.5557]
[1644631126245,46.81679713,97.934,97.871,24.5557]
[1644631126544,5.107,97.933,97.872,5.107]
[1644631126746,238.907,97.933,97.872,5.107]
[1644631126945,15.3304,97.93,97.872,5.107]
[1644631127145,5.107,97.929,97.85,1.4183107]
[1644631127349,7.49066791,97.929,97.837,1.4183107]
[1644631127646,2.38366791,97.928,97.834,24.8209]
[1644631127944,5.108,97.927,97.835,40.99593125]
[1644631128145,238.908,97.927,97.835,40.99593125]
[1644631128345,2.38366791,97.926,97.835,40.99593125]
[1644631128545,5.108,97.925,97.836,5.108]
[1644631128745,30.0731,97.92,97.84,15.3331]
[1644631128944,35.5628648,97.918,97.84,15.3331]
[1644631129146,5.108,97.917,97.84,15.3331]
[1644631129345,238.908,97.917,97.841,5.108]
[1644631129745,15.3351,97.9,97.841,5.108]
[1644631129949,249.1351,97.9,97.841,5.108]
[1644631130148,233.8,97.9,97.85,15.3325]
[1644631130348,233.8,97.916,97.85,15.3325]
[1644631130549,233.8,97.923,97.851,22.515]
[1644631130749,5.107,97.922,97.851,22.515]
[1644631131151,5.107,97.922,97.852,0.78442043]
[1644631131357,5.107,97.922,97.852,2.20273113]
[1644631131752,5.107,97.922,97.86,15.3299]
[1644631131952,5.107,97.922,97.861,5.107]
[1644631132153,238.907,97.922,97.861,5.107]
[1644631132351,233.8,97.922,97.861,5.107]
[1644631132654,5.107,97.921,97.861,5.107]
[1644631132853,238.907,97.921,97.862,24.2502]
[1644631133054,233.8,97.921,97.87,15.3294]
[1644631133252,5.107,97.92,97.87,15.3294]
[1644631133478,238.907,97.922,97.87,15.3294]
[1644631134155,238.907,97.922,97.871,38.96043707]
[1644631134352,238.907,97.922,97.871,47.50043707]
[1644631135554,238.907,97.922,97.88,15.3281]
[1644631139857,233.8,97.922,97.88,15.3281]
[1644631140059,238.907,97.949,97.88,15.3281]
[1644631140260,233.8,97.949,97.881,23.7921]
[1644631140458,5.106,97.948,97.9,15.3248]
[1644631140658,233.8,97.948,97.901,2.81991461]
[1644631140859,5.105,97.947,97.901,2.81991461]
[1644631141065,233.8,97.947,97.901,2.81991461]
[1644631141261,238.905,97.95,97.901,2.81991461]
[1644631141462,238.905,97.95,97.881,23.7921]
[1644631141463,233.8,97.95,97.881,23.7921]
[1644631141661,5.105,97.949,97.881,23.7921]
[1644631141861,233.8,97.949,97.881,23.7921]
[1644631142464,233.8,97.949,97.882,32.12286517]
[1644631142668,5.106,97.948,97.882,32.12286517]
[1644631142867,233.8,97.948,97.882,32.12286517]
[1644631143065,5.106,97.947,97.883,5.106]
[1644631143565,263.2384,97.947,97.883,5.106]
[1644631143766,258.1324,97.947,97.883,5.106]
[1644631143964,5.106,97.946,97.883,5.106]
[1644631144166,238.906,97.946,97.883,5.106]
[1644631147368,238.906,97.946,97.882,32.12286517]
[1644631148893,233.8,97.946,97.883,5.106]
[1644631149595,233.3,97.946,97.883,5.106]
[1644631149995,233.3,97.946,97.89,15.3259]
[1644631150798,233.3,97.955,97.89,15.3259]
[1644631150996,5.106,97.954,97.89,15.3259]
[1644631153700,5.106,97.954,97.882,32.12286517]
[1644631153701,5.106,97.954,97.9,15.3248]
[1644631153906,238.406,97.954,97.901,24.1599]
[1644631154704,233.3,97.954,97.901,29.2649]
[1644631154905,233.3,97.954,97.91,15.3232]
[1644631155103,233.3,97.964,97.91,15.3232]
[1644631155303,5.105,97.963,97.91,15.3232]
[1644631155807,238.405,97.963,97.91,15.3232]
[1644631156003,233.3,97.963,97.91,15.3232]
[1644631156203,5.105,97.962,97.911,5.105]
[1644631156404,238.405,97.962,97.911,5.105]
[1644631156605,233.3,97.962,97.912,23.3754]
[1644631156804,5.105,97.961,97.912,23.3754]
[1644631157004,40.13043789,97.97,97.912,23.3754]
[1644631158209,5.105,97.969,97.912,23.3754]
[1644631158415,5.105,97.968,97.892,1.4183107]
[1644631158608,238.405,97.968,97.891,24.9736]
[1644631158809,2.38366791,97.967,97.891,24.9736]
[1644631159008,5.105,97.966,97.871,1.4183107]
[1644631159207,14.74,97.96,97.873,23.8295]
[1644631159407,5.106,97.959,97.874,30.06215087]
[1644631159614,43.08384241,97.939,97.874,30.06215087]
[1644631159808,5.106,97.938,97.874,30.06215087]
[1644631160209,5.106,97.938,97.874,31.48046157]
[1644631160409,5.106,97.938,97.877,1.4183107]
[1644631160609,5.106,97.938,97.876,1.4183107]
[1644631160810,238.406,97.938,97.876,1.4183107]
[1644631162211,238.406,97.938,97.877,36.45766628]
[1644631162612,238.406,97.938,97.877,37.87597698]
[1644631163113,238.406,97.938,97.877,36.45766628]
[1644631163812,238.406,97.938,97.877,37.87597698]
[1644631164213,238.406,97.938,97.88,15.3274]
[1644631164617,238.406,97.938,97.88,16.7457107]
[1644631166221,238.406,97.938,97.882,1.4183107]
[1644631166419,238.406,97.938,97.881,1.4183107]
[1644631166818,238.406,97.938,97.887,1.4183107]
[1644631167017,233.3,97.938,97.887,1.4183107]
[1644631167238,233.3,97.938,97.882,1.4183107]
[1644631167437,233.3,97.938,97.886,1.4183107]
[1644631167839,233.3,97.938,97.885,1.4183107]
[1644631168037,5.106,97.937,97.879,1.4183107]
[1644631168237,5.106,97.937,97.876,1.4183107]
[1644631168437,238.406,97.937,97.873,25.2478107]
[1644631168740,233.3,97.937,97.874,34.43284037]
[1644631168938,233.3,97.938,97.873,25.2478107]
[1644631169139,233.3,97.938,97.875,1.4183107]
[1644631169340,233.3,97.938,97.874,1.4183107]
[1644631169540,15.3304,97.93,97.874,1.4183107]
[1644631169940,15.3304,97.93,97.873,25.2478107]
[1644631170145,5.107,97.929,97.873,6.5253107]
[1644631170344,2.38366791,97.93,97.873,5.107]
[1644631170543,5.107,97.928,97.873,5.107]
[1644631170743,2.38366791,97.93,97.873,5.107]
[1644631170744,5.107,97.929,97.873,5.107]
[1644631171447,5.107,97.929,97.866,1.4183107]
[1644631171645,30.0728,97.92,97.852,1.4183107]
[1644631171944,30.0728,97.92,97.845,1.4183107]
[1644631171945,5.107,97.919,97.845,1.4183107]
[1644631172245,262.8653,97.919,97.842,1.4183107]
[1644631172443,262.8653,97.919,97.821,23.2455]
[1644631172444,48.22537706,97.918,97.843,1.4183107]
[1644631172644,5.108,97.917,97.843,1.4183107]
[1644631172844,238.408,97.917,97.843,1.4183107]
[1644631173648,238.408,97.917,97.84,1.4183107]
[1644631173845,47.76406005,97.899,97.84,1.4183107]
[1644631174046,47.76406005,97.899,97.841,5.108]
[1644631174246,47.76406005,97.899,97.839,6.5263107]
[1644631174446,281.06406005,97.899,97.839,6.5263107]
[1644631174646,281.06406005,97.899,97.84,1.4183107]
[1644631174846,281.06406005,97.899,97.841,5.108]
[1644631175650,15.3366,97.89,97.841,5.108]
[1644631175848,248.6366,97.89,97.841,5.108]
[1644631176048,5.109,97.889,97.841,5.108]
[1644631177047,238.409,97.889,97.841,5.108]
[1644631179153,238.409,97.889,97.826,5.109]
[1644631179553,238.409,97.889,97.825,5.109]
[1644631180552,15.338,97.88,97.825,5.109]
[1644631181452,41.17736732,97.879,97.825,5.109]
[1644631181656,5.109,97.878,97.825,5.109]
[1644631184052,233.3,97.878,97.822,5.109]
[1644631184258,233.3,97.899,97.822,5.109]
[1644631184453,233.3,97.899,97.824,1.4183107]
[1644631184654,233.3,97.899,97.828,1.4183107]
[1644631184853,238.409,97.918,97.831,1.4183107]
[1644631185053,38.91550859,97.917,97.832,37.14686586]
[1644631185254,38.91550859,97.917,97.832,42.25486586]
[1644631185455,272.21550859,97.917,97.838,1.4183107]
[1644631185654,5.108,97.916,97.836,1.4183107]
[1644631185855,15.3334,97.91,97.84,15.3334]
[1644631186055,5.108,97.909,97.84,15.3334]
[1644631186256,238.408,97.909,97.84,15.3334]
[1644631188059,238.408,97.909,97.84,16.7517107]
[1644631188258,238.408,97.909,97.841,1.4183107]
[1644631188559,238.408,97.909,97.842,5.108]
[1644631189657,238.408,97.909,97.842,6.5263107]
[1644631189857,238.408,97.909,97.842,1.4183107]
[1644631190059,238.408,97.909,97.843,5.108]
[1644631190257,238.408,97.909,97.845,1.4183107]
[1644631190458,238.408,97.909,97.844,1.4183107]
[1644631190958,238.408,97.909,97.845,1.4183107]
[1644631191658,238.408,97.909,97.846,1.4183107]
[1644631191861,238.408,97.909,97.847,1.4183107]
[1644631192263,238.408,97.909,97.846,1.4183107]
[1644631193265,238.408,97.909,97.847,1.4183107]
[1644631193486,238.408,97.909,97.846,1.4183107]
[1644631193666,238.408,97.909,97.847,1.4183107]
[1644631193864,238.408,97.909,97.848,1.4183107]
[1644631194163,238.408,97.909,97.847,1.4183107]
[1644631195069,238.408,97.909,97.848,1.4183107]
[1644631195473,238.408,97.909,97.849,1.4183107]
[1644631195871,238.408,97.909,97.851,1.4183107]
[1644631196071,238.408,97.909,97.852,1.4183107]
[1644631196270,238.408,97.909,97.851,1.4183107]
[1644631197275,15.335,97.9,97.846,1.4183107]
[1644631197474,39.94804982,97.899,97.841,6.5263107]
[1644631197673,39.94804982,97.899,97.841,5.108]
[1644631198675,39.94804982,97.899,97.84,1.4183107]
[1644631198875,15.3373,97.89,97.84,1.4183107]
[1644631199075,5.109,97.889,97.84,1.4183107]
[1644631199478,5.109,97.889,97.843,1.4183107]
[1644631199679,5.109,97.889,97.844,1.4183107]
[1644631200083,5.109,97.889,97.843,1.4183107]
[1644631200581,15.338,97.88,97.843,1.4183107]
[1644631201198,48.62712786,97.879,97.843,1.4183107]
[1644631201398,48.62712786,97.879,97.842,1.4183107]
[1644631201600,5.109,97.878,97.844,1.4183107]
[1644631201800,5.109,97.878,97.842,1.4183107]
[1644631202199,5.109,97.878,97.843,1.4183107]
[1644631202401,5.109,97.878,97.842,1.4183107]
[1644631202799,238.409,97.878,97.842,1.4183107]
[1644631203000,238.409,97.878,97.836,1.4183107]
[1644631203202,238.409,97.878,97.837,1.4183107]
[1644631203612,238.409,97.878,97.84,1.4183107]
[1644631203802,238.409,97.878,97.837,1.4183107]
[1644631204302,238.409,97.878,97.838,1.4183107]
[1644631204701,238.409,97.878,97.839,1.4183107]
[1644631204903,238.409,97.878,97.841,1.4183107]
[1644631205302,238.409,97.878,97.844,1.4183107]
[1644631205502,233.3,97.878,97.843,1.4183107]
[1644631206102,233.3,97.878,97.858,1.4183107]
[1644631206301,15.3332,97.92,97.85,15.3317]
[1644631206302,248.6332,97.92,97.864,1.4183107]
[1644631206504,233.3,97.878,97.864,1.4183107]
[1644631206703,233.3,97.878,97.862,1.4183107]
[1644631207003,5.108,97.917,97.865,1.4183107]
[1644631207204,233.3,97.917,97.866,1.4183107]
[1644631207803,233.3,97.917,97.864,1.4183107]
[1644631208005,5.108,97.916,97.863,1.4183107]
[1644631208203,15.3336,97.91,97.863,1.4183107]
[1644631208404,5.107,97.909,97.863,1.4183107]
[1644631208605,235.68366791,97.909,97.853,1.4183107]
[1644631208806,5.108,97.908,97.848,1.4183107]
[1644631209007,238.408,97.908,97.844,1.4183107]
[1644631209207,233.3,97.908,97.846,1.4183107]
[1644631209510,233.3,97.916,97.846,1.4183107]
[1644631209810,233.3,97.916,97.826,24.9684]
[1644631209811,15.3355,97.9,97.847,1.4183107]
[1644631210016,47.69637118,97.898,97.846,1.4183107]
[1644631210213,5.108,97.897,97.84,1.4183107]
[1644631210408,240.79166791,97.897,97.836,1.4183107]
[1644631210809,240.79166791,97.897,97.831,1.4183107]
[1644631211008,240.79166791,97.897,97.832,1.4183107]
[1644631211810,15.3368,97.89,97.832,1.4183107]
[1644631212016,5.109,97.889,97.832,1.4183107]
[1644631212415,5.109,97.889,97.833,1.4183107]
[1644631213012,5.109,97.889,97.832,1.4183107]
[1644631213214,5.109,97.889,97.834,1.4183107]
[1644631213713,15.3379,97.88,97.834,1.4183107]
[1644631213913,43.1572707,97.878,97.834,1.4183107]
[1644631214113,5.109,97.877,97.834,1.4183107]
[1644631214413,5.109,97.877,97.835,1.4183107]
[1644631214615,5.109,97.877,97.834,1.4183107]
[1644631214916,5.109,97.877,97.815,23.7012]
[1644631214917,15.3397,97.87,97.82,1.4183107]
[1644631215114,5.11,97.869,97.82,1.4183107]
[1644631215317,240.79366791,97.869,97.81,1.4423107]
[1644631215517,2.38366791,97.868,97.81,1.4183107]
[1644631215714,2.38366791,97.868,97.81,0.024]
[1644631215715,15.3429,97.86,97.81,0.024]
[1644631215916,15.3429,97.86,97.806,1.4183107]
[1644631216115,7.49466791,97.859,97.802,1.4183107]
[1644631216316,240.79466791,97.859,97.8,0.024]
[1644631216516,2.38366791,97.858,97.8,0.024]
[1644631216816,53.88397361,97.857,97.8,0.024]
[1644631217017,15.3454,97.85,97.774,5.11]
[1644631217218,5.111,97.849,97.774,5.11]
[1644631217417,7.49466791,97.849,97.765,2.83244148]
[1644631217614,240.79466791,97.849,97.765,2.83244148]
[1644631217818,240.79466791,97.849,97.7,14.74]
[1644631217819,2.38366791,97.848,97.732,2.83244148]
[1644631218015,5.112,97.847,97.729,2.83244148]
[1644631218216,5.112,97.847,97.732,2.82164346]
[1644631218416,15.3497,97.83,97.733,5.113]
[1644631218618,14.74,97.82,97.733,5.113]
[1644631218817,14.74,97.81,97.719,5.113]
[1644631219023,14.74,97.81,97.716,5.114]
[1644631219218,14.74,97.81,97.72,4.58844651]
[1644631219418,14.74,97.81,97.717,4.58844651]
[1644631219619,51.33131633,97.809,97.72,2.38366791]
[1644631219833,51.33131633,97.809,97.721,9.70244651]
[1644631220026,51.33131633,97.809,97.722,4.58844651]
[1644631220226,51.33131633,97.809,97.723,5.114]
[1644631220428,15.3526,97.8,97.724,4.58844651]
[1644631220624,248.6526,97.8,97.724,4.58844651]
[1644631221024,248.6526,97.8,97.721,4.58844651]
[1644631221223,248.6526,97.8,97.725,4.58844651]
[1644631221427,248.6526,97.8,97.73,15.3506]
[1644631223533,248.6526,97.8,97.731,2.38366791]
[1644631223929,233.3,97.8,97.74,15.349]
[1644631224129,233.3,97.8,97.741,4.37618645]
[1644631224327,233.3,97.807,97.742,5.114]
[1644631224527,5.113,97.806,97.742,5.114]
[1644631224727,238.413,97.806,97.742,5.114]
[1644631224928,233.3,97.806,97.742,5.114]
[1644631225129,5.113,97.805,97.741,5.113]
[1644631225331,238.413,97.805,97.741,5.113]
[1644631225535,238.413,97.805,97.721,5.113]
[1644631225536,233.3,97.805,97.721,5.113]
[1644631225733,5.113,97.804,97.72,23.2796]
[1644631225933,14.74,97.8,97.711,5.113]
[1644631226133,5.114,97.799,97.711,5.113]
[1644631226333,7.49766791,97.799,97.711,5.113]
[1644631226733,2.38366791,97.798,97.711,5.113]
[1644631226933,5.114,97.797,97.692,24.3346]
[1644631227134,238.414,97.797,97.692,24.3346]
[1644631227343,233.3,97.797,97.692,24.3346]
[1644631227540,5.115,97.796,97.696,5.115]
[1644631227741,15.3576,97.78,97.696,5.115]
[1644631227940,37.8819165,97.778,97.696,5.115]
[1644631228144,5.115,97.777,97.696,5.115]
[1644631229841,15.3587,97.76,97.696,5.115]
[1644631230046,49.96379828,97.759,97.696,5.115]
[1644631232242,49.96379828,97.759,97.697,5.98788769]
[1644631232442,49.96379828,97.759,97.7,0.024]
[1644631233043,49.96379828,97.759,97.7,15.3806]
[1644631233443,44.84779828,97.759,97.7,15.3806]
[1644631233942,44.84779828,97.759,97.7,14.3806]
[1644631234144,5.116,97.758,97.701,5.116]
[1644631235167,238.416,97.758,97.701,5.116]
[1644631235460,238.416,97.758,97.7,14.3806]
[1644631235762,238.416,97.758,97.7,13.8806]
[1644631238367,233.3,97.758,97.7,13.8806]
[1644631238664,233.3,97.758,97.698,2.5580992]
[1644631238865,5.116,97.757,97.698,2.5580992]
[1644631239067,233.3,97.757,97.699,5.116]
[1644631239365,5.116,97.756,97.698,2.5580992]
[1644631239566,233.3,97.756,97.698,2.5580992]
[1644631239765,233.3,97.756,97.696,5.116]
[1644631240065,5.116,97.755,97.696,5.116]
[1644631240266,233.3,97.755,97.696,5.116]
[1644631241168,15.3596,97.75,97.696,5.116]
[1644631242369,5.116,97.749,97.662,38.56855387]
[1644631242568,15.3624,97.74,97.67,15.3613]
[1644631242769,48.62576123,97.739,97.671,5.117]
[1644631242971,53.74276123,97.739,97.671,5.117]
[1644631243368,53.74276123,97.739,97.672,4.58904153]
[1644631243571,15.3627,97.73,97.673,5.117]
[1644631243771,5.117,97.729,97.673,5.117]
[1644631244270,5.117,97.729,97.674,4.58904153]
[1644631244672,5.117,97.729,97.675,5.117]
[1644631244877,15.3645,97.72,97.675,5.117]
[1644631245272,5.117,97.719,97.675,5.117]
[1644631245482,5.117,97.719,97.635,2.83244148]
[1644631245672,5.117,97.719,97.633,2.83244148]
[1644631245872,48.32749581,97.718,97.634,37.08338153]
[1644631246076,5.118,97.717,97.64,15.3662]
[1644631246287,48.32749581,97.718,97.643,2.83244148]
[1644631246475,5.118,97.716,97.647,2.83244148]
[1644631246674,5.118,97.717,97.643,2.83244148]
[1644631246873,5.118,97.715,97.643,2.83244148]
[1644631247073,5.118,97.717,97.643,2.83244148]
[1644631247677,5.118,97.717,97.644,2.83244148]
[1644631247874,5.118,97.717,97.65,15.3637]
[1644631248074,5.118,97.717,97.651,4.6049877]
[1644631249075,238.418,97.717,97.651,4.6049877]
[1644631250375,15.366,97.71,97.65,0.024]
[1644631250575,5.118,97.709,97.64,0.024]
[1644631250880,238.418,97.709,97.64,0.024]
[1644631251077,233.3,97.709,97.64,0.024]
[1644631251877,15.3676,97.7,97.64,0.024]
[1644631252077,5.119,97.699,97.64,0.024]
[1644631252277,48.74656329,97.699,97.64,0.024]
[1644631252682,282.04656329,97.699,97.64,0.024]
[1644631253880,15.3691,97.69,97.64,0.024]
[1644631254082,5.119,97.689,97.637,4.58946674]
[1644631254280,5.119,97.689,97.636,24.9127]
[1644631254481,233.3,97.689,97.636,24.9127]
[1644631254682,5.119,97.688,97.636,24.9127]
[1644631254981,238.419,97.697,97.64,0.024]
[1644631255181,5.119,97.687,97.63,0.024]
[1644631255384,5.119,97.696,97.63,0.024]
[1644631255581,5.119,97.686,97.63,0.024]
[1644631255782,15.3711,97.68,97.63,0.024]
[1644631256181,5.12,97.679,97.63,0.024]
[1644631256884,44.39442512,97.678,97.63,0.024]
[1644631257081,5.12,97.677,97.63,0.024]
[1644631257981,44.39442512,97.678,97.63,0.024]
[1644631258985,31.0,97.677,97.626,1.35644148]
[1644631259185,264.3,97.677,97.627,5.12]
[1644631259385,264.3,97.677,97.625,1.35644148]
[1644631259584,264.3,97.677,97.626,5.12]
[1644631259783,233.3,97.677,97.626,5.12]
[1644631259983,238.42,97.677,97.613,5.12]
[1644631260785,238.42,97.677,97.62,15.3691]
[1644631261886,238.42,97.677,97.62,11.8691]
[1644631262086,238.42,97.677,97.621,4.57214438]
[1644631262584,281.46436557,97.815,97.77,1322.0]
[1644631262784,150.89325944,97.911,97.806,26.72756671]
[1644631262992,37.92439459,97.911,97.87,184.24]
[1644631263184,11.52559119,98.078,97.806,26.72756671]
[1644631263185,4.3173648,98.032,97.91,0.48]
[1644631263385,15.6857,98.112,98.02,116.93]
[1644631263585,46.18110774,98.126,98.02,0.48]
[1644631263785,15.73247769,98.19,98.0,0.00253322]
[1644631263786,0.51167769,98.19,98.06,184.24]
[1644631263985,0.51167769,98.19,98.07,14.74]
[1644631264185,0.51167769,98.19,98.08,14.74]
[1644631264387,0.51167769,98.19,98.09,14.74]
[1644631264585,41.87818027,98.189,98.1,14.74]
[1644631264788,41.87818027,98.189,98.101,5.78883026]
[1644631265085,41.87818027,98.189,98.11,14.74]
[1644631265286,38.0,98.188,98.051,4.29571574]
[1644631265488,17.74142614,98.188,98.06,14.74]
[1644631265686,17.74142614,98.188,98.07,14.74]
[1644631266190,41.87818027,98.189,98.07,14.74]
[1644631266587,5.095,98.188,98.071,20.33395091]
[1644631266790,5.095,98.188,98.071,5.59395091]
[1644631266993,7.47866791,98.188,98.07,14.74]
[1644631267195,40.38366791,98.187,98.04,14.74]
[1644631267390,14.74,98.18,98.03,14.74]
[1644631267589,5.096,98.179,98.02,14.74]
[1644631267790,7.47966791,98.179,98.03,14.74]
[1644631267990,7.47966791,98.179,98.04,14.74]
[1644631268195,5.096,98.179,98.04,14.74]
[1644631268597,2.38366791,98.178,98.04,14.74]
[1644631268891,14.74,98.17,98.0,14.74253322]
[1644631269091,43.96676531,98.168,98.0,14.74253322]
[1644631269291,5.097,98.167,98.0,14.74253322]
[1644631269691,7.48066791,98.167,98.001,5.097]
[1644631269892,2.38366791,98.166,98.001,5.097]
[1644631270091,5.097,98.165,98.001,5.097]
[1644631270496,2.38366791,98.164,98.001,5.097]
[1644631270694,14.74,98.15,98.001,5.097]
[1644631270894,41.05268696,98.149,98.001,5.097]
[1644631271095,5.098,98.148,98.001,5.097]
[1644631271294,7.48166791,98.148,98.002,2.38366791]
[1644631271495,5.098,98.148,98.002,2.38366791]
[1644631271897,2.38366791,98.147,98.002,2.38366791]
[1644631272099,5.098,98.146,98.01,15.2986]
[1644631272396,5.098,98.147,98.02,14.74]
[1644631272597,5.097,98.148,98.02,14.74]
[1644631272897,5.097,98.148,98.021,7.48066791]
[1644631273105,12.10972554,98.149,98.03,184.24]
[1644631273298,5.097,98.148,98.04,14.74]
[1644631273498,5.097,98.148,98.041,5.097]
[1644631273901,5.097,98.148,98.041,7.48066791]
[1644631274098,5.097,98.148,98.042,2.38366791]
[1644631274299,5.097,98.148,98.05,15.292]
[1644631274500,12.10972554,98.149,98.06,14.74]
[1644631274707,12.10972554,98.149,98.061,5.096]
[1644631276727,12.10972554,98.149,98.061,7.47966791]
[1644631276930,12.10972554,98.149,98.07,15.2892]
[1644631277126,12.10972554,98.149,98.08,14.74]
[1644631278030,12.10972554,98.149,98.061,0.006]
[1644631278229,14.74,98.14,98.01,10.08]
[1644631278432,5.098,98.139,98.01,10.08]
[1644631278632,7.48166791,98.139,98.01,10.08]
[1644631278832,5.27545917,98.138,98.01,10.08]
[1644631279032,5.098,98.137,98.011,5.098]
[1644631279230,7.48166791,98.137,98.01,10.08]
[1644631279531,2.38366791,98.136,98.01,10.08]
[1644631279730,5.098,98.135,98.01,10.08]
[1644631279935,48.66734191,98.134,98.011,5.098]
[1644631280132,5.098,98.133,98.011,5.098]
[1644631280333,5.098,98.133,98.01,10.08]
[1644631280540,7.48166791,98.133,98.011,5.098]
[1644631280732,2.38366791,98.132,98.011,5.098]
[1644631280933,5.098,98.131,98.011,5.098]
[1644631281334,5.098,98.133,98.02,14.74]
[1644631281533,5.098,98.133,98.021,5.098]
[1644631281733,48.66734191,98.134,98.021,7.48166791]
[1644631281933,48.66734191,98.134,98.022,2.38366791]
[1644631282232,5.098,98.189,98.022,2.38366791]
[1644631282233,5.098,98.189,98.04,184.24]
[1644631282535,5.098,98.189,98.05,14.74]
[1644631282733,5.098,98.189,98.05,65.6995]
[1644631282933,5.098,98.189,98.051,2.38366791]
[1644631283233,48.3968716,98.188,98.05,14.74]
[1644631283432,5.095,98.187,98.05,14.74]
[1644631283634,7.47866791,98.187,98.05,14.74]
[1644631283833,19.3871035,98.187,98.05,14.74]
[1644631284034,5.095,98.187,98.051,2.38366791]
[1644631285241,5.095,98.187,98.052,5.095]
[1644631285537,5.095,98.187,98.07,15.2895]
[1644631285738,33.2386061,98.188,98.06,14.74]
[1644631286137,8.61658591,98.187,98.03,14.74]
[1644631286340,2.38366791,98.187,98.02,14.74]
[1644631286539,14.2921035,98.187,98.02,14.74]
[1644631286738,11.90843559,98.186,98.02,24.74]
[1644631286939,11.90843559,98.186,98.021,5.24871594]
[1644631287342,11.90843559,98.186,98.022,2.38366791]
[1644631287742,15.2997,98.18,98.03,15.2937]
[1644631287941,14.74,98.17,98.031,5.096]
[1644631288141,43.97109307,98.169,98.031,5.096]
[1644631288341,5.096,98.168,98.031,5.096]
[1644631289145,5.096,98.168,98.032,2.38366791]
[1644631289347,12.26,98.16,98.033,5.096]
[1644631289545,5.097,98.159,98.033,5.096]
[1644631289749,5.097,98.159,98.021,5.097]
[1644631290148,5.097,98.159,98.007,4.29571574]
[1644631290351,168.5029,98.15,98.008,5.097]
[1644631290549,12.26,98.14,98.001,5.097]
[1644631290747,5.098,98.139,98.001,5.097]
[1644631292753,17.00643559,98.139,98.001,5.097]
[1644631292953,153.2,98.12,98.001,5.097]
[1644631293150,12.26,98.11,98.001,5.097]
[1644631293351,5.099,98.109,98.001,5.097]
[1644631293552,5.099,98.109,98.058,4.29571574]
[1644631294254,34.0,98.108,98.002,7.15952623]
[1644631294451,5.099,98.107,98.002,7.15952623]
[1644631295869,5.099,98.109,98.003,5.099]
[1644631296273,5.099,98.109,98.0,0.00253322]
[1644631296473,5.099,98.109,98.001,5.099]
[1644631296870,15.3092,98.1,98.001,5.099]
[1644631297071,12.26,98.09,98.001,5.099]
[1644631297271,5.099,98.089,98.001,5.099]